lending/lending_fUSD_20250122
["ID","MTS","AMOUNT","RATE_DAILY","PERIOD"]
[350014588,1737565855864,-538.97,0.00021369,2]
[350014589,1737565855873,-1068.08,0.00021369,2]
[350014590,1737565855883,-352.58137843,0.00021369,2]
[350014591,1737565855892,-500.0,0.00021369,2]
[350014592,1737565855902,-701.25,0.00021369,2]
[350014593,1737565855910,-500.0,0.00021369,2]
[350014594,1737565855919,-598.7,0.00021369,2]
[350014595,1737565855929,-839.47,0.00021369,2]
[350014596,1737565855939,-796.59,0.00021369,2]
[350014597,1737565855951,-500.0,0.00021369,2]
[350014598,1737565855962,-704.85,0.00021369,2]
[350014599,1737565855971,-888.25,0.00021369,2]
[350014600,1737565855980,-500.0,0.00021369,2]
[350014601,1737565855989,-2198.06,0.00021369,2]
[350014602,1737565855999,-347.67088864,0.00021369,2]
[350014603,1737565856008,-500.0,0.00021369,2]
[350014604,1737565856018,-911.33,0.00021369,2]
[350014605,1737565856028,-871.28,0.00021369,2]
[350014606,1737565856037,-621.29,0.00021369,2]
[350014607,1737565856047,-500.0,0.00021369,2]
[350014608,1737565856058,-500.0,0.00021369,2]
[350014609,1737565856068,-525.11,0.00021369,2]
[350014610,1737565856078,-500.0,0.00021369,2]
[350014611,1737565856087,-936.18,0.00021369,2]
[350014612,1737565856096,-1361.84,0.00021369,2]
[350014613,1737565856106,-1757.48,0.00021369,2]
[350014614,1737565856116,-500.0,0.00021369,2]
[350014615,1737565856126,-1059.37,0.00021369,2]
[350014616,1737565856136,-500.0,0.00021369,2]
[350014617,1737565856147,-788.3,0.00021369,2]
[350014618,1737565856157,-1968.0,0.00021377,2]
[350014619,1737565856168,-1298.52,0.000214,2]
[350014620,1737565856177,-451.90785432,0.00021417,2]
[350014621,1737565856187,-162.46808222,0.00021428,2]
[350014622,1737565856196,-828.29,0.00021433,2]
[350014623,1737565856207,-205.328,0.00021457,2]
[350014624,1737565856216,-152.0,0.00021483,3]
[350014625,1737565856225,-451.90785432,0.00021486,2]
[350014626,1737565856235,-430.3178249,0.00021491,2]
[350014627,1737565856245,-451.90785432,0.00021555,2]
[350014628,1737565856258,-2019.0,0.00021588,2]
[350014629,1737565856267,-1270.0,0.00021588,2]
[350014630,1737565856277,-567.0,0.00021588,2]
[350014631,1737565856286,-150.0,0.00021588,2]
[350014632,1737565856296,-698.355,0.00021588,2]
[350014633,1737565856305,-1032.554,0.00021588,2]
[350014634,1737565856314,-1261.0,0.00021588,2]
[350014635,1737565856324,-2865.81,0.00021588,2]
[350014636,1737565856334,-781.0,0.00021588,2]
[350014637,1737565856344,-1968.0,0.00021598,2]
[350014638,1737565856353,-231.0,0.000216,2]
[350014639,1737565856364,-366.0,0.000216,2]
[350014640,1737565856373,-745.0,0.000216,2]
[350014641,1737565856383,-1471.0,0.00021615,2]
[350014642,1737565856392,-451.90785432,0.00021624,3]
[350014643,1737565856402,-2046.91,0.00021642,2]
[350014644,1737565856411,-656.98,0.00021642,2]
[350014645,1737565856421,-500.0,0.00021642,2]
[350014646,1737565856430,-657.244566,0.00021642,2]
[350014647,1737565856439,-500.0,0.00021642,2]
[350014648,1737565856448,-500.0,0.00021642,2]
[350014649,1737565856458,-907.71,0.00021642,2]
[350014650,1737565856468,-500.0,0.00021642,2]
[350014651,1737565856477,-460.310681,0.00021642,2]
[350014652,1737565856487,-1063.42,0.00021642,2]
[350014653,1737565856496,-941.71,0.00021642,2]
[350014654,1737565856506,-965.73,0.00021642,2]
[350014655,1737565856515,-1797.28,0.00021642,2]
[350014656,1737565856524,-643.03,0.00021642,2]
[350014657,1737565856534,-974.46,0.00021642,2]
[350014658,1737565856544,-724.33,0.00021642,2]
[350014659,1737565856554,-694.48,0.00021642,2]
[350014660,1737565856564,-673.61,0.00021642,2]
[350014661,1737565856574,-776.58,0.00021642,2]
[350014662,1737565856584,-672.49,0.00021642,2]
[350014663,1737565856594,-500.0,0.00021642,2]
[350014664,1737565856603,-501.16,0.00021642,2]
[350014665,1737565856612,-500.0,0.00021642,2]
[350014666,1737565856621,-500.0,0.00021642,2]
[350014667,1737565856631,-625.11,0.00021642,2]
[350014668,1737565856640,-1105.81,0.00021642,2]
[350014669,1737565856650,-1336.34,0.00021642,2]
[350014670,1737565856659,-726.5,0.00021642,2]
[350014671,1737565856668,-935.45,0.00021642,2]
[350014672,1737565856678,-966.49,0.00021642,2]
[350014673,1737565856687,-1581.88,0.00021642,2]
[350014674,1737565856697,-788.97,0.00021642,2]
[350014675,1737565856706,-1825.75,0.00021642,2]
[350014676,1737565856715,-636.92,0.00021642,2]
[350014677,1737565856725,-500.0,0.00021642,2]
[350014678,1737565856734,-681.56,0.00021642,2]
[350014679,1737565856744,-1012.12,0.00021642,2]
[350014680,1737565856753,-666.62,0.00021642,2]
[350014681,1737565856763,-847.19,0.00021642,2]
[350014682,1737565856772,-699.41,0.00021642,2]
[350014683,1737565856782,-626.69,0.00021642,2]
[350014684,1737565856792,-153.508936,0.00021642,2]
[350014685,1737565856802,-2254.05,0.00021642,2]
[350014686,1737565856812,-1106.94,0.00021642,2]
[350014687,1737565856821,-1650.73,0.00021642,2]
[350014688,1737565856831,-500.0,0.00021642,2]
[350014689,1737565856841,-1074.08,0.00021642,2]
[350014690,1737565856851,-743.43,0.00021642,2]
[350014691,1737565856860,-500.0,0.00021642,2]
[350014692,1737565856870,-500.0,0.00021643,2]
[350014693,1737565856879,-500.0,0.00021643,2]
[350014694,1737565856889,-500.0,0.00021643,2]
[350014695,1737565856898,-211.74443143,0.00021643,2]
[350014696,1737565856907,-500.0,0.00021643,2]
[350014697,1737565856917,-500.0,0.00021643,2]
[350014698,1737565856926,-500.0,0.00021643,2]
[350014699,1737565856935,-261.26025463,0.00021643,2]
[350014700,1737565857077,-500.0,0.00021643,2]
[350014701,1737565857086,-509.66,0.00021643,2]
[350014702,1737565857096,-500.0,0.00021643,2]
[350014703,1737565857105,-545.74,0.00021643,2]
[350014704,1737565857114,-500.0,0.00021643,2]
[350014705,1737565857123,-500.0,0.00021643,2]
[350014706,1737565857132,-500.0,0.00021643,2]
[350014707,1737565857142,-500.0,0.00021643,2]
[350014708,1737565857151,-500.0,0.00021643,2]
[350014709,1737565857160,-649.07,0.00021643,2]
[350014710,1737565857169,-500.0,0.00021643,2]
[350014711,1737565857179,-525.43,0.00021643,2]
[350014712,1737565857188,-505.79,0.00021643,2]
[350014713,1737565857197,-646.03,0.00021643,2]
[350014714,1737565857206,-500.0,0.00021643,2]
[350014715,1737565857215,-500.0,0.00021643,2]
[350014716,1737565857225,-500.0,0.00021643,2]
[350014717,1737565857234,-501.78,0.00021643,2]
[350014718,1737565857243,-431.72127357,0.00021643,2]
[350014719,1737565857253,-500.0,0.00021643,2]
[350014720,1737565857265,-614.23,0.00021643,2]
[350014721,1737565857274,-623.51,0.00021643,2]
[350014722,1737565857283,-546.02,0.00021643,2]
[350014723,1737565857292,-504.84,0.00021643,2]
[350014724,1737565857303,-664.44,0.00021643,2]
[350014725,1737565857314,-500.0,0.00021643,2]
[350014726,1737565857323,-500.0,0.00021643,2]
[350014727,1737565857333,-500.0,0.00021643,2]
[350014728,1737565857342,-500.0,0.00021643,2]
[350014729,1737565857351,-645.5,0.00021643,2]
[350014730,1737565857361,-500.0,0.00021643,2]
[350014731,1737565857371,-500.0,0.00021643,2]
[350014732,1737565857380,-500.0,0.00021643,2]
[350014733,1737565857389,-593.07,0.00021643,2]
[350014734,1737565857398,-500.0,0.00021643,2]
[350014735,1737565857408,-1003.48,0.00021643,2]
[350014736,1737565857417,-617.32,0.00021643,2]
[350014737,1737565857426,-500.0,0.00021643,2]
[350014738,1737565857435,-500.0,0.00021643,2]
[350014739,1737565857446,-500.0,0.00021643,2]
[350014740,1737565857455,-540.86,0.00021643,2]
[350014741,1737565857465,-563.17,0.00021643,2]
[350014742,1737565857474,-1287.13,0.00021643,2]
[350014743,1737565857483,-510.95725994,0.00021643,2]
[350014744,1737565857492,-500.0,0.00021643,2]
[350014745,1737565857501,-670.74,0.00021643,2]
[350014746,1737565857510,-864.36,0.00021643,2]
[350014747,1737565857519,-500.0,0.00021643,2]
[350014748,1737565857528,-500.0,0.00021643,2]
[350014749,1737565857537,-869.3,0.00021643,2]
[350014750,1737565857546,-955.3,0.00021643,2]
[350014751,1737565857556,-970.84,0.00021643,2]
[350014752,1737565857565,-500.0,0.00021643,2]
[350014753,1737565857575,-1182.22,0.00021643,2]
[350014754,1737565857584,-500.0,0.00021643,2]
[350014755,1737565857593,-869.54,0.00021643,2]
[350014756,1737565857603,-500.0,0.00021643,2]
[350014757,1737565857612,-780.63,0.00021643,2]
[350014758,1737565857621,-653.23,0.00021643,2]
[350014759,1737565857630,-1803.15,0.00021643,2]
[350014760,1737565857640,-833.14,0.00021643,2]
[350014761,1737565857650,-573.29,0.00021643,2]
[350014762,1737565857659,-1171.15,0.00021643,2]
[350014763,1737565857669,-579.15,0.00021643,2]
[350014764,1737565857678,-3742.26,0.00021643,2]
[350014765,1737565857688,-690.65,0.00021643,2]
[350014766,1737565857697,-701.87,0.00021643,2]
[350014767,1737565857706,-1138.91,0.00021643,2]
[350014768,1737565857715,-690.29,0.00021643,2]
[350014769,1737565857725,-500.0,0.00021643,2]
[350014770,1737565857734,-605.71,0.00021643,2]
[350014771,1737565857743,-500.0,0.00021643,2]
[350014772,1737565857754,-1917.71,0.00021643,2]
[350014773,1737565857763,-668.31,0.00021643,2]
[350014774,1737565857772,-633.32,0.00021643,2]
[350014775,1737565857782,-752.83,0.00021643,2]
[350014776,1737565857792,-1417.61,0.00021643,2]
[350014777,1737565857801,-538.97,0.00021643,2]
[350014778,1737565857811,-1068.08,0.00021643,2]
[350014779,1737565857820,-500.0,0.00021643,2]
[350014780,1737565857829,-701.25,0.00021643,2]
[350014781,1737565857839,-251.17215012,0.00021643,2]
[350014782,1737565857849,-598.7,0.00021643,2]
[350014783,1737565857859,-839.47,0.00021643,2]
[350014784,1737565857868,-796.59,0.00021643,2]
[350014785,1737565857878,-500.0,0.00021643,2]
[350014786,1737565857887,-704.85,0.00021643,2]
[350014787,1737565857897,-888.25,0.00021643,2]
[350014788,1737565857907,-500.0,0.00021643,2]
[350014789,1737565857916,-2198.06,0.00021643,2]
[350014790,1737565857926,-500.0,0.00021643,2]
[350014791,1737565857935,-911.33,0.00021643,2]
[350014792,1737565857945,-871.28,0.00021643,2]
[350014793,1737565857954,-621.29,0.00021643,2]
[350014794,1737565857964,-500.0,0.00021643,2]
[350014795,1737565857973,-500.0,0.00021643,2]
[350014796,1737565857982,-500.0,0.00021643,2]
[350014797,1737565857991,-936.18,0.00021643,2]
[350014798,1737565858000,-1361.84,0.00021643,2]
[350014799,1737565858010,-525.11,0.00021643,2]
[350014800,1737565858019,-1757.48,0.00021643,2]
[350014801,1737565858029,-500.0,0.00021643,2]
[350014802,1737565858038,-1059.37,0.00021643,2]
[350014803,1737565858047,-500.0,0.00021643,2]
[350014804,1737565858057,-788.3,0.00021643,2]
[350014805,1737565858067,-162.46808222,0.00021664,2]
[350014806,1737565858076,-500.0,0.00021688,2]
[350014807,1737565858086,-451.90785432,0.00021693,3]
[350014808,1737565858095,-3000.0,0.00021725,2]
[350014809,1737565858105,-150.0,0.00021731,2]
[350014810,1737565858114,-200.7,0.00021737,2]
[350014811,1737565858123,-87136.81199638,0.0002175,7]
[350014812,1737565858133,-710.756,0.0002175,2]
[350014813,1737565858143,-500.0,0.0002175,2]
[350014814,1737565858152,-500.0,0.0002175,2]
[350014815,1737565858161,-500.0,0.0002175,2]
[350014816,1737565858171,-502.0,0.0002175,2]
[350014817,1737565858181,-500.0,0.0002175,2]
[350014818,1737565858190,-500.0,0.0002175,2]
[350014819,1737565858199,-500.0,0.0002175,2]
[350014820,1737565858208,-500.0,0.0002175,2]
[350014821,1737565858217,-500.0,0.0002175,2]
[350014822,1737565858226,-500.0,0.0002175,2]
[350014823,1737565858235,-500.0,0.0002175,2]
[350014824,1737565858245,-500.0,0.0002175,2]
[350014825,1737565858259,-500.0,0.0002175,2]
[350014826,1737565858268,-500.0,0.0002175,2]
[350014827,1737565858277,-500.0,0.0002175,2]
[350014828,1737565858287,-500.0,0.0002175,2]
[350014829,1737565858297,-500.0,0.0002175,2]
[350014830,1737565858306,-500.0,0.0002175,2]
[350014831,1737565858316,-500.0,0.0002175,2]
[350014832,1737565858325,-500.0,0.0002175,2]
[350014833,1737565858340,-500.0,0.0002175,2]
[350014834,1737565858349,-500.0,0.0002175,2]
[350014835,1737565858358,-500.0,0.0002175,2]
[350014836,1737565858367,-500.0,0.0002175,2]
[350014837,1737565858376,-500.0,0.0002175,2]
[350014838,1737565858385,-500.0,0.0002175,2]
[350014839,1737565858394,-500.0,0.0002175,2]
[350014840,1737565858404,-500.0,0.0002175,2]
[350014841,1737565858413,-500.0,0.0002175,2]
[350014842,1737565858422,-500.0,0.0002175,2]
[350014843,1737565858432,-500.0,0.0002175,2]
[350014844,1737565858441,-500.0,0.0002175,2]
[350014845,1737565858450,-500.0,0.0002175,2]
[350014846,1737565858460,-500.0,0.0002175,2]
[350014847,1737565858469,-500.0,0.0002175,2]
[350014848,1737565858478,-500.0,0.0002175,2]
[350014849,1737565858488,-500.0,0.0002175,2]
[350014850,1737565858497,-500.0,0.0002175,2]
[350014851,1737565858506,-500.0,0.0002175,2]
[350014852,1737565858516,-500.0,0.0002175,2]
[350014853,1737565858526,-500.0,0.0002175,2]
[350014854,1737565858535,-500.0,0.0002175,2]
[350014855,1737565858545,-500.0,0.0002175,2]
[350014856,1737565858556,-500.0,0.0002175,2]
[350014857,1737565858566,-500.0,0.0002175,2]
[350014858,1737565858576,-500.0,0.0002175,2]
[350014859,1737565858585,-500.0,0.0002175,2]
[350014860,1737565858595,-500.0,0.0002175,2]
[350014861,1737565858604,-500.0,0.0002175,2]
[350014862,1737565858613,-500.0,0.0002175,2]
[350014863,1737565858622,-507.0,0.0002175,2]
[350014864,1737565858632,-451.90785432,0.00021762,3]
[350014865,1737565858641,-500.0,0.0002178,2]
[350014866,1737565858650,-500.0,0.0002178,2]
[350014867,1737565858660,-500.0,0.0002178,2]
[350014868,1737565858669,-1007.0,0.000218,2]
[350014869,1737565858678,-1968.0,0.00021818,2]
[350014870,1737565858688,-500.0,0.00021823,2]
[350014871,1737565858698,-451.90785432,0.00021831,3]
[350014872,1737565858707,-500.0,0.00021836,2]
[350014873,1737565858717,-201.44,0.00021839,2]
[350014874,1737565858726,-150.0,0.00021859,2]
[350014875,1737565858735,-150.0,0.00021886,2]
[350014876,1737565858745,-2000.0,0.0002189,2]
[350014877,1737565858754,-174536.30626235,0.000219,4]
[350014878,1737566210683,154.41,0.00010137,2]
[350014880,1737566441918,171.55,0.00012329,2]
[350014881,1737566708666,9674.04,0.00012,2]
[350014882,1737566708689,10000.0,0.00012,2]
[350014883,1737566708713,10000.0,0.00012,2]
[350014884,1737566708736,10000.0,0.00012,2]
[350014885,1737566708760,10000.0,0.00012,2]
[350014886,1737566708786,10000.0,0.00012,2]
[350014887,1737566708809,10000.0,0.00012,2]
[350014888,1737566708832,10000.0,0.00012,2]
[350014889,1737566708855,10000.0,0.00012,2]
[350014890,1737566708878,10000.0,0.00012,2]
[350014891,1737566708903,10000.0,0.00012,2]
[350014892,1737566708925,10000.0,0.00012,2]
[350014893,1737566708947,10000.0,0.00012,2]
[350014894,1737566708971,10000.0,0.00012,2]
[350014895,1737566708993,10000.0,0.00012,2]
[350014896,1737566709015,10000.0,0.00012,2]
[350014897,1737566709041,10000.0,0.00012,2]
[350014898,1737566709063,10000.0,0.00012,2]
[350014899,1737566709091,10000.0,0.00012,2]
[350014900,1737566709113,10000.0,0.00012,2]
[350014901,1737566709137,10000.0,0.00012,2]
[350014902,1737566709163,91250.63297786,0.00012,2]
[350014903,1737566709190,997772.60821,0.00012,2]
[350014904,1737566709214,1000000.0,0.00012,2]
[350014905,1737566709244,745.86,0.00012,2]
[350014906,1737566709270,34081.55947482,0.00012,2]
[350014907,1737566725959,770.47114531,0.000108,2]
[350014908,1737566730167,33366.50380808,0.00011,2]
[350014919,1737566877926,3341.15448946,0.0001,2]
[350014920,1737566881611,1481909.82735739,0.0001,2]
[350014923,1737566913474,10838.34968825,9.828e-05,2]
[350014930,1737567031776,-498.76810641,0.00013,5]
[350014931,1737567031785,-378.6387527,0.00014,2]
[350014932,1737567031794,-357.86978306,0.0001439,2]
[350014933,1737567032100,-417.2,0.0001439,2]
[350014934,1737567032158,-983.88842385,0.0001439,2]
[350014935,1737567032168,-2168.79847212,0.00015,2]
[350014936,1737567032177,-537.262539,0.0001592,2]
[350014937,1737567032187,-518.4820603,0.00016,2]
[350014938,1737567032214,-4051.92036651,0.00016,2]
[350014939,1737567032224,-827.23666339,0.00016,2]
[350014940,1737567032234,-828.51,0.00017696,2]
[350014941,1737567032244,-154.41,0.00018065,2]
[350014942,1737567032253,-278.46,0.00018184,2]
[350014943,1737567032264,-177.54,0.00018215,2]
[350014944,1737567032274,-1129.63,0.00018368,2]
[350014945,1737567032283,-155.37,0.00018373,30]
[350014946,1737567032292,-150.0,0.00018403,2]
[350014947,1737567032302,-250.0,0.00018518,2]
[350014948,1737567032314,-1000.0,0.00018518,2]
[350014949,1737567032323,-500.0,0.00018548,2]
[350014950,1737567032333,-500.0,0.00018548,2]
[350014951,1737567032342,-1148.102,0.00018548,2]
[350014952,1737567032351,-200.0,0.00018566,2]
[350014953,1737567032361,-176.72,0.00018671,2]
[350014954,1737567032370,-2893.13,0.00018709,2]
[350014956,1737567032379,-200.0,0.00018715,2]
[350014958,1737567032388,-851.99,0.00018808,2]
[350014960,1737567032397,-250.0,0.00018838,2]
[350014962,1737567032407,-174.3,0.00018842,2]
[350014963,1737567032416,-3090.58,0.00018899,2]
[350014965,1737567032425,-200.0,0.00019032,2]
[350014967,1737567032434,-208.38641358,0.00019417,2]
[350014969,1737567032443,-500.0,0.0001945,2]
[350014971,1737567032453,-500.0,0.0001945,2]
[350014973,1737567032462,-500.0,0.0001945,2]
[350014975,1737567032472,-500.0,0.0001945,2]
[350014977,1737567032481,-500.0,0.0001945,2]
[350014979,1737567032491,-500.0,0.0001945,2]
[350014981,1737567032500,-500.0,0.0001945,2]
[350014984,1737567032510,-500.0,0.0001945,2]
[350014985,1737567032519,-500.0,0.0001945,2]
[350014987,1737567032528,-500.0,0.0001945,2]
[350014989,1737567032538,-500.0,0.0001945,2]
[350014991,1737567032548,-500.0,0.0001945,2]
[350014993,1737567032557,-500.0,0.0001945,2]
[350014994,1737567032568,-500.0,0.0001945,2]
[350014995,1737567032577,-500.0,0.0001945,2]
[350014996,1737567032587,-500.0,0.0001945,2]
[350014997,1737567032596,-500.0,0.0001945,2]
[350014998,1737567032609,-500.0,0.0001945,2]
[350014999,1737567032618,-500.0,0.0001945,2]
[350015000,1737567032627,-500.0,0.0001945,2]
[350015001,1737567032636,-500.0,0.0001945,2]
[350015002,1737567032645,-500.0,0.0001945,2]
[350015003,1737567032654,-500.0,0.0001945,2]
[350015004,1737567032664,-500.0,0.0001945,2]
[350015005,1737567032673,-500.0,0.0001945,2]
[350015006,1737567032683,-500.0,0.0001945,2]
[350015007,1737567032694,-500.0,0.0001945,2]
[350015008,1737567032703,-500.0,0.0001945,2]
[350015009,1737567032713,-500.0,0.0001945,2]
[350015010,1737567032722,-500.0,0.0001945,2]
[350015011,1737567032732,-712.05,0.0001945,2]
[350015012,1737567032741,-500.0,0.0001945,2]
[350015013,1737567032750,-500.0,0.0001945,2]
[350015014,1737567032759,-500.0,0.0001945,2]
[350015015,1737567032768,-500.0,0.0001945,2]
[350015016,1737567032778,-500.0,0.0001945,2]
[350015017,1737567032788,-500.0,0.0001945,2]
[350015018,1737567032797,-500.0,0.0001945,2]
[350015019,1737567032806,-688.89,0.0001945,2]
[350015020,1737567032820,-500.0,0.0001945,2]
[350015021,1737567032830,-500.0,0.0001945,2]
[350015022,1737567032840,-501.96,0.0001945,2]
[350015023,1737567032849,-615.99,0.0001945,2]
[350015024,1737567032859,-500.0,0.0001945,2]
[350015025,1737567032869,-517.5939595,0.0001945,2]
[350015026,1737567032879,-500.0,0.0001945,2]
[350015027,1737567032888,-500.0,0.0001945,2]
[350015028,1737567032897,-500.0,0.0001945,2]
[350015029,1737567032906,-500.0,0.0001945,2]
[350015030,1737567032916,-500.0,0.0001945,2]
[350015031,1737567032925,-150.39054366,0.00019451,2]
[350015032,1737567032934,-501.2689923,0.00019451,2]
[350015033,1737567032943,-500.0,0.00019451,2]
[350015034,1737567032952,-248.29368683,0.00019451,2]
[350015035,1737567032961,-370.87057537,0.00019451,2]
[350015036,1737567032970,-236.57273217,0.00019451,2]
[350015037,1737567032979,-500.0,0.00019451,2]
[350015038,1737567032988,-500.0,0.00019451,2]
[350015039,1737567032997,-500.0,0.00019451,2]
[350015040,1737567033006,-500.0,0.00019451,2]
[350015041,1737567033016,-500.0,0.00019451,2]
[350015042,1737567033026,-500.0,0.00019451,2]
[350015043,1737567033035,-500.0,0.00019451,2]
[350015044,1737567033044,-500.0,0.00019451,2]
[350015045,1737567033054,-500.0,0.00019451,2]
[350015046,1737567033065,-500.0,0.00019451,2]
[350015047,1737567033074,-500.0,0.00019451,2]
[350015048,1737567033084,-500.0,0.00019451,2]
[350015049,1737567033093,-500.0,0.00019451,2]
[350015050,1737567033103,-739.28,0.00019471,2]
[350015051,1737567033113,-1391.37555817,0.00019624,2]
[350015052,1737567033122,-12479.6646,0.00019624,2]
[350015053,1737567033132,-446.111,0.00019624,2]
[350015054,1737567033141,-1000.0,0.00019624,2]
[350015055,1737567033151,-1310.81714732,0.00019624,2]
[350015064,1737567037708,-1189.18285268,0.00019624,2]
[350015066,1737567037718,-483.50613548,0.00019644,2]
[350015068,1737567037729,-16.49386452,0.00019644,2]
[350015069,1737567037738,-250.0,0.00019664,2]
[350015070,1737567037748,-74.75210031,0.00019678,2]
[350015071,1737567037759,-37815.76251435,0.00019678,2]
[350015072,1737567037769,-312.61600712,0.00019694,2]
[350015073,1737567037779,-500.0,0.00019723,2]
[350015074,1737567037788,-500.0,0.00019723,2]
[350015075,1737567037798,-500.0,0.00019723,2]
[350015076,1737567037807,-643.82,0.00019723,2]
[350015077,1737567037818,-762.63,0.00019723,2]
[350015078,1737567037827,-783.02,0.00019723,2]
[350015079,1737567037836,-525.98,0.00019723,2]
[350015080,1737567037846,-928.03,0.00019723,2]
[350015081,1737567037855,-500.0,0.00019723,2]
[350015082,1737567037865,-500.0,0.00019723,2]
[350015083,1737567037874,-500.0,0.00019723,2]
[350015084,1737567037884,-674.75,0.00019723,2]
[350015085,1737567037893,-1015.18,0.00019723,2]
[350015086,1737567037902,-500.0,0.00019723,2]
[350015087,1737567037911,-500.0,0.00019723,2]
[350015088,1737567037920,-500.0,0.00019723,2]
[350015089,1737567037930,-1100.49,0.00019723,2]
[350015090,1737567037941,-500.0,0.00019723,2]
[350015091,1737567037952,-500.0,0.00019723,2]
[350015092,1737567037961,-500.0,0.00019723,2]
[350015093,1737567037971,-500.0,0.00019723,2]
[350015094,1737567037984,-500.0,0.00019723,2]
[350015095,1737567037994,-1364.61,0.00019723,2]
[350015096,1737567038004,-514.75,0.00019723,2]
[350015097,1737567038013,-500.0,0.00019723,2]
[350015098,1737567038022,-500.0,0.00019723,2]
[350015099,1737567038031,-812.46,0.00019723,2]
[350015100,1737567038041,-500.0,0.00019723,2]
[350015101,1737567038050,-500.0,0.00019723,2]
[350015103,1737567038061,-742.8,0.00019723,2]
[350015105,1737567038072,-500.0,0.00019724,2]
[350015107,1737567038082,-500.0,0.00019724,2]
[350015109,1737567038092,-376.30671372,0.00019724,2]
[350015111,1737567038101,-500.0,0.00019724,2]
[350015112,1737567038111,-216.86027105,0.00019724,2]
[350015114,1737567038120,-500.0,0.00019724,2]
[350015116,1737567038129,-500.0,0.00019724,2]
[350015118,1737567038138,-500.0,0.00019724,2]
[350015120,1737567038148,-500.0,0.00019724,2]
[350015122,1737567038158,-500.0,0.00019724,2]
[350015124,1737567038167,-500.0,0.00019724,2]
[350015126,1737567038175,-500.0,0.00019724,2]
[350015128,1737567038184,-500.0,0.00019724,2]
[350015130,1737567038194,-500.0,0.00019724,2]
[350015132,1737567038203,-500.0,0.00019724,2]
[350015134,1737567038212,-500.0,0.00019724,2]
[350015136,1737567038221,-500.0,0.00019724,2]
[350015138,1737567038230,-500.0,0.00019724,2]
[350015140,1737567038239,-500.0,0.00019724,2]
[350015142,1737567038249,-500.0,0.00019724,2]
[350015144,1737567038258,-500.0,0.00019724,2]
[350015146,1737567038267,-500.0,0.00019724,2]
[350015148,1737567038277,-500.0,0.00019724,2]
[350015150,1737567038286,-500.0,0.00019724,2]
[350015152,1737567038295,-500.0,0.00019724,2]
[350015154,1737567038304,-500.0,0.00019724,2]
[350015156,1737567038316,-500.0,0.00019724,2]
[350015158,1737567038325,-500.0,0.00019724,2]
[350015160,1737567038337,-500.0,0.00019724,2]
[350015162,1737567038352,-500.0,0.00019724,2]
[350015164,1737567038361,-517.39516647,0.00019724,2]
[350015166,1737567038371,-500.0,0.00019724,2]
[350015168,1737567038381,-500.0,0.00019724,2]